[Event "25th Abu Dhabi Open 2018"]
[Site "Abu Dhabi"]
[Date "2018.08.11"]
[Round "5"]
[White "Ashraf, Artin"]
[Black "Pabalan, Rocky"]
[Result "1/2-1/2"]
[ECO "A05"]
[WhiteElo "1867"]
[BlackElo "2073"]
[Annotator "NA"]
[PlyCount "311"]
[EventDate "2018.08.05"]
[EventType "swiss"]
[EventCountry "UAE"]
[SourceTitle "playchess.com"]
[Source "ChessBase"]
[SourceQuality "1"]
[TimeControl "5400+30"]

1. Nf3 Nf6 2. c4 c5 3. g3 Nc6 4. Bg2 e5 5. O-O Be7 6. Nc3 O-O 7. d3 d6 8. a3 h6 9. Rb1 a5 10. Ne1 Rb8 11. Nc2 Nd4 12. Bd2 Bd7 13. b4 Nxc2 14. Qxc2 axb4 15. axb4 cxb4 16. Na2 b3 17. Qxb3 b5 18. Nb4 bxc4 19. Qxc4 Bb5 20. Qa2 Qd7 21. Rfc1 Rfc8 22. Nc6 Bxc6 23. Bxc6 Qe6 24. Qxe6 fxe6 25. Rxb8 Rxb8 26. Bf3 d5 27. Kf1 Ba3 28. Ra1 Bc5 29. Rc1 Ba3 30. Ra1 Rb3 31. h3 Bc5 32. Rc1 Bb6 33. Ke1 Kf7 34. Bg2 Ke7 35. Be3 d4 36. Bd2 Nd5 37. f4 Nc3 38. fxe5 Rb2 39. Bf3 Nb1 40. Rxb1 Rxb1+ 41. Kf2 Bc7 42. h4 Bxe5 43. Kg2 Bd6 44. Kf2 Bc7 45. Kg2 Kd6 46. Bf4+ e5 47. Bd2 Kc5 48. Kf2 Rd1 49. Be1 Kb5 50. Be4 Bd8 51. Bg6 Ka4 52. Be8+ Kb3 53. Bc6 Rb1 54. Be8 Bb6 55. Bc6 Kc2 56. Ba4+ Kc1 57. Bc6 Rb2 58. Kf1 Rb1 59. Kf2 Bd8 60. Bf3 Rb2 61. Kf1 Kb1 62. Kf2 Bb6 63. Be4 Ka2 64. Kf3 Ka3 65. Bg6 Rc2 66. h5 Rc6 67. Kg2 Rf6 68. Bb4+ Kb2 69. Be4 Bd8 70. Bf3 Kb3 71. Bc5 Ka4 72. Kh3 Kb5 73. Ba3 Kb6 74. Bb4 Kc7 75. Ba5+ Kd7 76. Bd2 Ra6 77. Kg4 Ke6 78. Bb4 Bg5 79. Bc5 Be7 80. Bb6 Ra1 81. Bc5 Rg1 82. Bxe7 Kxe7 83. Be4 Kf6 84. Bf3 Rf1 85. Be4 Rf2 86. Bf3 Ke6 87. Kh4 Kf5 88. Bg4+ Kf6 89. Bf3 e4 90. Bxe4 Rxe2 91. Bg6 Re5 92. Kg4 Re3 93. Kf4 Re1 94. g4 Ke7 95. Be4 Kf6 96. Bf5 Re5 97. Be4 Re7 98. Bf5 Re1 99. Bg6 Re2 100. Bf5 g5+ 101. hxg6 Re1 102. Be4 Rf1+ 103. Kg3 Re1 104. Kf4 Re3 105. Bf5 Re1 106. Be4 Re2 107. Kf3 Re1 108. Kf4 Rc1 109. Kg3 Rf1 110. Kg2 Rf4 111. Kg3 Rf1 112. Kg2 Rc1 113. Kg3 Rc5 114. Kf4 Rg5 115. Kf3 Ke5 116. Kg3 h5 117. Kh4 Rxg4+ 118. Kxh5 Rg3 119. Kh6 Kf6 120. Kh5 Kg7 121. Kh4 Re3 122. Kg4 Kf6 123. Kf4 Rh3 124. g7 Kxg7 125. Ke5 Rh4 126. Kxd4 Kf6 127. Kd5 Rh5+ 128. Kd6 Rh8 129. d4 Rh4 130. Kd5 Ke7 131. Ke5 Rh5+ 132. Bf5 Rh2 133. d5 Rd2 134. Be4 Rd1 135. Bf5 Re1+ 136. Be4 Kd7 137. Kd4 Kd6 138. Bf3 Ra1 139. Be2 Ra3 140. Bd3 Ra4+ 141. Bc4 Rb4 142. Kc3 Kc5 143. Ba2 Rh4 144. Bb3 Rh3+ 145. Kc2 Kb4 146. Ba2 Rh2+ 147. Kb1 Rh1+ 148. Kb2 Rh2+ 149. Kb1 Rd2 150. d6 Kc3 151. Bf7 Rxd6 152. Ka2 Rf6 153. Bg8 Rf2+ 154. Kb1 Rb2+ 155. Ka1 Rb8 156. Bf7 1/2-1/2

[Event "25th Abu Dhabi Open 2018"]
[Site "Abu Dhabi"]
[Date "2018.08.11"]
[Round "5"]
[White "Atif Mahgoub Elhassan"]
[Black "Saif, Malek"]
[Result "1/2-1/2"]
[ECO "C55"]
[WhiteElo "1866"]
[BlackElo "2024"]
[Annotator "NA"]
[PlyCount "150"]
[EventDate "2018.08.05"]
[EventType "swiss"]
[EventCountry "UAE"]
[SourceTitle "playchess.com"]
[Source "ChessBase"]
[SourceQuality "1"]
[TimeControl "5400+30"]

1. e4 e5 2. d4 exd4 3. Nf3 Nc6 4. Bc4 Nf6 5. Qe2 d6 6. O-O Be7 7. h3 O-O 8. c3 d5 9. exd5 Nxd5 10. cxd4 Bf6 11. Nc3 Nb6 12. Be3 Re8 13. Bb5 Bd7 14. Rfd1 Nb4 15. Bxd7 Qxd7 16. a3 N4d5 17. Qd3 Rad8 18. Ne4 c6 19. Nfg5 Bxg5 20. Nxg5 f5 21. Nf3 Nxe3 22. fxe3 Qd5 23. Re1 Nc4 24. b3 Nd6 25. Rad1 Re6 26. Qc2 Nf7 27. Qc4 Qxc4 28. bxc4 Rde8 29. Kf2 Nd6 30. Rc1 Ne4+ 31. Ke2 g5 32. Kd3 g4 33. hxg4 fxg4 34. Ne5 Nf2+ 35. Ke2 g3 36. Kf3 Rxe5 37. dxe5 Nd3 38. Ke4 Nxe1 39. Rxe1 Rf8 40. e6 Rf2 41. Rd1 Kf8 42. Ke5 Rxg2 43. Rd8+ Ke7 44. Rd7+ Ke8 45. Rxh7 Re2 46. Kd6 Rd2+ 47. Kc7 g2 48. Rg7 b5 49. cxb5 c5 50. Kb7 c4 51. Kxa7 c3 52. b6 Rb2 53. a4 Rxb6 54. Rxg2 Rxe6 55. a5 Kd7 56. a6 Kc7 57. Rc2 Rxe3 58. Rh2 Re7 59. Rh3 Kc6+ 60. Kb8 Kb6 61. Kc8 Rc7+ 62. Kb8 c2 63. a7 Rxa7 64. Rb3+ Ka6 65. Ra3+ Kb5 66. Rxa7 c1=Q 67. Rb7+ Ka4 68. Ra7+ Kb3 69. Rb7+ Ka3 70. Ra7+ Kb2 71. Rb7+ Ka2 72. Ra7+ Kb1 73. Rb7+ Kc2 74. Rc7+ Kd2 75. Rxc1 Kxc1 1/2-1/2

[Event "25th Abu Dhabi Open 2018"]
[Site "Abu Dhabi"]
[Date "2018.08.11"]
[Round "5"]
[White "Huang, Zixiu"]
[Black "Sameir, Ramez"]
[Result "0-1"]
[ECO "C18"]
[WhiteElo "1864"]
[BlackElo "2000"]
[Annotator "NA"]
[PlyCount "74"]
[EventDate "2018.08.05"]
[EventType "swiss"]
[EventCountry "UAE"]
[SourceTitle "playchess.com"]
[Source "ChessBase"]
[SourceQuality "1"]
[TimeControl "5400+30"]

1. e4 e6 2. d4 d5 3. Nc3 Bb4 4. e5 c5 5. a3 Bxc3+ 6. bxc3 Ne7 7. Qg4 Qc7 8. Qxg7 Rg8 9. Qxh7 cxd4 10. Qd3 Qxe5+ 11. Ne2 dxc3 12. Bf4 Qf6 13. Qxc3 Qxc3+ 14. Nxc3 a6 15. Bxb8 Rxb8 16. Rb1 Bd7 17. Kd2 Bc6 18. f3 Nf5 19. Rb4 Ke7 20. g4 a5 21. Rf4 Nh4 22. Bb5 d4 23. Bxc6 dxc3+ 24. Kxc3 Rbc8 25. g5 Rxc6+ 26. Kb3 Ng2 27. Rg4 Ne3 28. Re4 Nxc2 29. h4 Rd8 30. h5 Nd4+ 31. Kb2 Nxf3 32. g6 Rd2+ 33. Ka1 fxg6 34. hxg6 Rg2 35. Rf4 Ne5 36. Rh7+ Kd6 37. Rxb7 Rc1+ 0-1

[Event "25th Abu Dhabi Open 2018"]
[Site "Abu Dhabi"]
[Date "2018.08.11"]
[Round "5"]
[White "Sahithi Varshini M"]
[Black "Umbetov, Kazybek"]
[Result "0-1"]
[ECO "C15"]
[WhiteElo "1728"]
[BlackElo "2055"]
[Annotator "NA"]
[PlyCount "142"]
[EventDate "2018.08.05"]
[EventType "swiss"]
[EventCountry "UAE"]
[SourceTitle "playchess.com"]
[Source "ChessBase"]
[SourceQuality "1"]
[TimeControl "5400+30"]

1. e4 {[%emt 0:00:00]} e6 {[%emt 0:00:00]} 2. d4 {[%emt 0:00:00]} d5 {[%emt 0:00:01]} 3. Nc3 {[%emt 0:00:07]} Bb4 {[%emt 0:00:05]} 4. exd5 exd5 {[%emt 0:00:06]} 5. Bd3 {[%emt 0:00:13]} Nf6 {[%emt 0:00:13]} 6. Nge2 {[%emt 0:01:18]} O-O {[%emt 0:01:08]} 7. O-O {[%emt 0:00:44]} c6 {[%emt 0:00:31]} 8. Ng3 {[%emt 0:03:01]} Re8 {[%emt 0:02:11]} 9. Nce2 {[%emt 0:01:59]} Ne4 {[%emt 0:07:41]} 10. f3 {[%emt 0:09:22]} Nxg3 {[%emt 0:00:05]} 11. Nxg3 {[%emt 0:00:06]} Bd6 {[%emt 0:01:10]} 12. f4 {[%emt 0:02:23]} Nd7 {[%emt 0:01:19]} 13. Nf5 {[%emt 0:03:27]} Bf8 {[%emt 0:05:24]} 14. Ng3 {[%emt 0:12:07]} Qh4 {[%emt 0:03:28]} 15. Qh5 {[%emt 0:05:01]} Qxh5 {[%emt 0:00:41]} 16. Nxh5 {[%emt 0:00:07]} g6 {[%emt 0:00:26]} 17. Ng3 {[%emt 0:01:19]} f5 {[%emt 0:01:43]} 18. c3 {[%emt 0:02:49]} b6 {[%emt 0:00:17]} 19. a4 {[%emt 0:03:38]} a5 {[%emt 0:00:40]} 20. Bd2 {[%emt 0:02:11]} Nf6 {[%emt 0:00:45]} 21. Rfe1 {[%emt 0:03:27]} Ne4 {[%emt 0:00:42]} 22. Nxe4 {[%emt 0:00:40]} dxe4 {[%emt 0:00:02]} 23. Bc4+ {[%emt 0:00:21]} Be6 {[%emt 0:00:01]} 24. Bxe6+ {[%emt 0:00:35]} Rxe6 {[%emt 0:00:01]} 25. Be3 {[%emt 0:00:50]} Kf7 {[%emt 0:00:14]} 26. Red1 {[%emt 0:00:17]} Rd8 {[%emt 0:00:13]} 27. Rd2 {[%emt 0:01:36]} Red6 {[%emt 0:00:36]} 28. Rad1 {[%emt 0:00:15]} Ke6 {[%emt 0:01:52]} 29. c4 {[%emt 0:02:10]} Be7 {[%emt 0:08:20]} 30. g3 {[%emt 0:00:21]} h6 {[%emt 0:00:28]} 31. h4 {[%emt 0:00:17]} Kd7 {[%emt 0:01:44]} 32. Kf2 {[%emt 0:02:30]} Kc7 {[%emt 0:00:47]} 33. Ke2 {[%emt 0:02:07]} Kb7 {[%emt 0:01:13]} 34. b3 {[%emt 0:04:14]} R6d7 {[%emt 0:00:26]} 35. Kf2 {[%emt 0:05:37]} Bb4 {[%emt 0:00:16]} 36. Rc2 {[%emt 0:00:30]} Ka6 {[%emt 0:00:32]} 37. Kf1 {[%emt 0:01:06]} Be7 {[%emt 0:01:49]} 38. Ke2 {[%emt 0:00:55]} Bf6 {[%emt 0:01:14]} 39. Rcd2 {[%emt 0:00:11]} b5 {[%emt 0:04:15]} 40. axb5+ {[%emt 0:04:35]} cxb5 {[%emt 0:00:12]} 41. d5 {[%emt 0:00:58]} bxc4 {[%emt 0:02:52]} 42. bxc4 {[%emt 0:00:07]} Bc3 {[%emt 0:01:20]} 43. Rc2 {[%emt 0:00:53]} Bb4 {[%emt 0:00:01]} 44. Bd2 {[%emt 0:00:27]} Kb6 {[%emt 0:13:35]} 45. Bxb4 axb4 {[%emt 0:00:02]} 46. Ra1 {[%emt 0:02:30]} Rc8 {[%emt 0:01:32]} 47. Rac1 {[%emt 0:04:52]} Kc5 {[%emt 0:00:11]} 48. Rb2 {[%emt 0:04:44]} Ra8 {[%emt 0:00:14]} 49. Rcb1 {[%emt 0:04:10]} Ra4 {[%emt 0:01:48]} 50. Rc1 {[%emt 0:00:40]} Ra3 {[%emt 0:00:01]} 51. Rcb1 {[%emt 0:00:19]} Rb7 {[%emt 0:00:10]} 52. Kf2 {[%emt 0:02:11]} Kxc4 {[%emt 0:00:02]} 53. Rc1+ {[%emt 0:00:07]} Rc3 {[%emt 0:00:11]} 54. Rd1 {[%emt 0:01:00]} b3 {[%emt 0:00:05]} 55. d6 {[%emt 0:00:08]} Rc2+ {[%emt 0:00:07]} 56. Rd2 {[%emt 0:00:14]} Rxb2 {[%emt 0:00:05]} 57. Rxb2 {[%emt 0:00:05]} Kc3 {[%emt 0:00:03]} 58. Rb1 {[%emt 0:00:07]} b2 {[%emt 0:00:04]} 59. Ke3 {[%emt 0:00:04]} Kc2 {[%emt 0:00:16]} 60. Rxb2+ Kxb2 {[%emt 0:00:02]} 61. Kd4 {[%emt 0:00:15]} Rd7 {[%emt 0:00:06]} 62. Ke3 {[%emt 0:00:06]} Rxd6 {[%emt 0:00:05]} 63. Ke2 {[%emt 0:00:05]} Kc3 {[%emt 0:00:05]} 64. Ke1 {[%emt 0:00:03]} Rd2 {[%emt 0:00:06]} 65. Kf1 {[%emt 0:00:04]} e3 {[%emt 0:00:03]} 66. Ke1 {[%emt 0:00:05]} Kd3 {[%emt 0:00:05]} 67. Kf1 {[%emt 0:00:05]} e2+ {[%emt 0:00:06]} 68. Ke1 {[%emt 0:00:05]} Rd1+ {[%emt 0:00:04]} 69. Kf2 {[%emt 0:00:04]} e1=Q+ {[%emt 0:00:04]} 70. Kg2 {[%emt 0:00:06]} Qf1+ {[%emt 0:00:04]} 71. Kh2 {[%emt 0:00:03]} Qh1# {[%emt 0:00:06]} 0-1

[Event "25th Abu Dhabi Open 2018"]
[Site "Abu Dhabi"]
[Date "2018.08.12"]
[Round "6"]
[White "Hallaeva, Bahar"]
[Black "Stanley, Samson P."]
[Result "1-0"]
[ECO "B01"]
[WhiteElo "2098"]
[BlackElo "1927"]
[Annotator "NA"]
[PlyCount "159"]
[EventDate "2018.08.05"]
[EventType "swiss"]
[EventCountry "UAE"]
[SourceTitle "playchess.com"]
[Source "ChessBase"]
[SourceQuality "1"]
[TimeControl "5400+30"]

1. e4 {[%emt 0:00:00]} d5 {[%emt 0:00:00]} 2. exd5 {[%emt 0:00:00]} Nf6 {[%emt 0:00:00]} 3. Nf3 {[%emt 0:10:37]} Nxd5 {[%emt 0:00:00]} 4. d4 {[%emt 0:04:12]} g6 {[%emt 0:00:00]} 5. Be2 {[%emt 0:01:47]} Bg7 {[%emt 0:00:00]} 6. O-O {[%emt 0:02:19]} O-O {[%emt 0:00:00]} 7. Re1 {[%emt 0:01:29]} Re8 {[%emt 0:04:11]} 8. c3 {[%emt 0:03:08]} Nc6 {[%emt 0:05:51]} 9. Bg5 {[%emt 0:02:24] B01: Scandinavian Defence} (9. Na3 Rb8 10. Nc4 b5 11. Nce5 Nxe5 12. Nxe5 Qd6 13. Bf3 f6 14. Nd3 Be6 15. a4 a6 16. axb5 axb5 {1-0 (69) Salgado Lopez,I (2501)-Tomczak,J (2449) Szeged 2008}) 9... Qd6 $146 {[%emt 0:01:11]} ({Predecessor:} 9... h6 10. Bh4 Nf4 11. Bc4 g5 12. Bxg5 hxg5 13. Nxg5 e6 14. Qg4 Qf6 15. Nd2 e5 16. Qh4 Be6 {1-0 (52) Derli,O (2131)-Beznosikov,V (2298) St Petersburg 2015}) 10. Na3 {[%emt 0:04:05]} a6 {[%emt 0:03:53]} 11. Nc4 {[%emt 0:02:17]} Qd8 {[%emt 0:02:42]} 12. a4 {[%emt 0:01:25]} h6 {[%emt 0:00:46]} 13. Bh4 {[%emt 0:01:15]} f5 {[%emt 0:01:10]} 14. Bd3 {[%emt 0:18:53]} g5 {[%emt 0:03:47]} 15. Nxg5 hxg5 {[%emt 0:00:02]} 16. Bxg5 {[%emt 0:01:44]} Rf8 {[%emt 0:09:54]} 17. Qf3 {[%emt 0:03:51]} Qd7 {[%emt 0:10:48]} 18. Ne3 {[%emt 0:05:25]} e6 {[%emt 0:22:54]} 19. Nxd5 {[%emt 0:02:31]} exd5 {[%emt 0:10:24]} 20. Qh5 {[%emt 0:03:34]} Qf7 {[%emt 0:05:48]} 21. Qh4 {[%emt 0:01:12]} Bd7 {[%emt 0:00:49]} 22. Re3 {[%emt 0:01:17]} Rfe8 {[%emt 0:01:27]} 23. Rg3 {[%emt 0:04:07]} Re6 {[%emt 0:00:58]} 24. Qf4 {[%emt 0:02:05]} Rae8 {[%emt 0:07:05]} 25. h4 {[%emt 0:01:23]} Bc8 {[%emt 0:01:18]} 26. Qf3 {[%emt 0:05:11]} Re4 {[%emt 0:02:33]} 27. Bxe4 {[%emt 0:01:42]} dxe4 {[%emt 0:02:03]} 28. Qf4 {[%emt 0:01:49]} Kh7 {[%emt 0:00:09]} 29. h5 {[%emt 0:03:26]} Nd8 {[%emt 0:00:14]} 30. Bxd8 {[%emt 0:03:54]} Rxd8 {[%emt 0:00:02]} 31. Rg6 $1 {[%emt 0:00:07]} Be6 {[%emt 0:01:31]} (31... Rd6 $11) 32. Re1 {[%emt 0:01:20]} Bd5 {[%emt 0:01:15] [#]} (32... c5 $16 {is a better defense.}) 33. Re3 $1 {[%emt 0:00:23]} Bf8 {[%emt 0:01:40]} 34. Reg3 {[%emt 0:04:20]} Rd6 {[%emt 0:00:12]} 35. a5 {[%emt 0:00:31]} Re6 {[%emt 0:01:13]} 36. b4 {[%emt 0:01:24]} Rd6 {[%emt 0:00:39]} 37. R6g5 {[%emt 0:01:44]} Bh6 {[%emt 0:00:43]} 38. Qxf5+ {[%emt 0:00:06]} Qxf5 {[%emt 0:00:08]} 39. Rxf5 {[%emt 0:00:01]} c6 {[%emt 0:00:26]} 40. Re5 {[%emt 0:01:00]} Rd7 {[%emt 0:00:37]} 41. Re8 {[%emt 0:00:02]} Rf7 {[%emt 0:01:06]} 42. Rg6 {[%emt 0:00:41]} Rd7 {[%emt 0:00:22]} 43. Rg4 {[%emt 0:00:51]} Bf7 {[%emt 0:00:43]} (43... Bd2 $11 44. Rg3 Rf7) 44. Rexe4 {[%emt 0:00:10]} Bxh5 $2 {[%emt 0:00:01]} (44... Bd2 $16 {was called for.}) 45. Rg3 {[%emt 0:00:45]} Bf7 {[%emt 0:00:36]} 46. Rh4 {[%emt 0:00:56]} Be6 {[%emt 0:00:26]} 47. Rf3 {[%emt 0:01:08]} Rf7 {[%emt 0:01:00]} 48. Rg3 {[%emt 0:00:30]} Rf6 {[%emt 0:00:44]} 49. Rg5 {[%emt 0:00:17]} Rg6 {[%emt 0:00:20]} 50. Re5 {[%emt 0:00:18]} Kg7 {[%emt 0:00:23]} 51. Reh5 {[%emt 0:00:55]} Bd5 {[%emt 0:00:31]} 52. g3 {[%emt 0:00:12]} Re6 {[%emt 0:00:34]} 53. Re5 {[%emt 0:00:05]} Rxe5 {[%emt 0:00:46]} 54. dxe5 {[%emt 0:00:01]} Bd2 {[%emt 0:00:14]} 55. c4 {[%emt 0:00:18]} Be6 {[%emt 0:00:07]} 56. c5 {[%emt 0:00:27]} Bd5 $1 $11 {[%emt 0:00:56]} 57. Rg4+ {[%emt 0:00:55]} Kf7 {[%emt 0:00:09] [#]} (57... Kf8 $1 $11) 58. Rh4 {[%emt 0:00:26]} ({Better is} 58. Kf1 $1 $16) 58... Ke6 {[%emt 0:00:21]} 59. f4 {[%emt 0:00:33]} Kf5 {[%emt 0:00:59]} 60. Rh7 {[%emt 0:01:14]} Bxb4 {[%emt 0:00:12]} 61. Rxb7 {[%emt 0:00:04]} Bxc5+ {[%emt 0:00:18]} 62. Kh2 {[%emt 0:00:02]} Be3 {[%emt 0:00:34]} 63. Rd7 {[%emt 0:00:59]} Bd2 {[%emt 0:00:34]} 64. Ra7 {[%emt 0:00:14]} Bc4 {[%emt 0:00:34]} 65. Rc7 {[%emt 0:00:11]} Bb5 {[%emt 0:00:18]} 66. Rf7+ {[%emt 0:00:12]} Kg6 {[%emt 0:00:40]} 67. e6 {[%emt 0:01:20]} Bxa5 {[%emt 0:01:00]} 68. f5+ {[%emt 0:00:04]} Kh6 {[%emt 0:00:02]} 69. e7 {[%emt 0:00:59]} c5 {[%emt 0:00:07]} 70. Rf6+ {[%emt 0:00:55]} Kg7 $2 {[%emt 0:00:07]} (70... Kg5 71. Rxa6 Bc3) 71. Rf8 {[%emt 0:00:48]} Bc3 $18 {[%emt 0:00:28]} 72. e8=Q {[%emt 0:00:36]} Bxe8 {[%emt 0:00:02]} 73. Rxe8 {[%emt 0:00:02]} a5 {[%emt 0:00:25]} 74. g4 {[%emt 0:00:32]} Bb4 {[%emt 0:01:41]} 75. Kh3 {[%emt 0:00:19]} c4 {[%emt 0:00:16]} 76. Rc8 {[%emt 0:00:25]} c3 {[%emt 0:00:01]} 77. Rc4 {[%emt 0:01:05]} a4 {[%emt 0:01:07]} 78. Rxb4 {[%emt 0:00:12]} a3 {[%emt 0:00:01]} 79. Rb1 {[%emt 0:00:08]} a2 {[%emt 0:00:45]} 80. Rf1 {[%emt 0:00:12]} 1-0

[Event "25th Abu Dhabi Open 2018"]
[Site "Abu Dhabi"]
[Date "2018.08.12"]
[Round "6"]
[White "Umbetov, Kazybek"]
[Black "Bauyrzhan, Arnash"]
[Result "1-0"]
[ECO "A01"]
[WhiteElo "2055"]
[BlackElo "2007"]
[Annotator "NA"]
[PlyCount "127"]
[EventDate "2018.08.05"]
[EventType "swiss"]
[EventCountry "UAE"]
[SourceTitle "playchess.com"]
[Source "ChessBase"]
[SourceQuality "1"]
[TimeControl "5400+30"]

1. b3 {[%emt 0:00:00]} e5 {[%emt 0:00:07]} 2. Bb2 {[%emt 0:00:00]} Nc6 {[%emt 0:00:17]} 3. e3 {[%emt 0:00:00]} Nf6 {[%emt 0:00:51]} 4. Bb5 {[%emt 0:00:27]} Bd6 {[%emt 0:00:46]} 5. Ne2 {[%emt 0:04:51]} a6 {[%emt 0:02:51] A01: Nimzowitsch-Larsen Opening} (5... O-O 6. Na3 e4 7. Nc4 Be7 8. Bxc6 bxc6 9. O-O a5 10. d3 d5 11. Nd2 a4 12. dxe4 Nxe4 13. Nxe4 dxe4 {½-½ (45) Jobava,B (2687)-Yu,Y (2744) Tbilisi 2017}) 6. Bxc6 dxc6 {[%emt 0:00:11]} 7. d3 {[%emt 0:02:16]} O-O {[%emt 0:01:33]} 8. e4 {[%emt 0:00:26]} Qe7 {[%emt 0:09:47]} 9. Ng3 $146 {[%emt 0:01:14]} ({Predecessor:} 9. Nd2 Ba3 10. Bxa3 Qxa3 11. Nc4 Qe7 12. Qd2 Re8 13. O-O {1-0 (33) Nivala,T (2215)-Radkov,B (2066) Finland 2015}) 9... Bc5 {[%emt 0:01:16]} 10. O-O {[%emt 0:02:48]} Ng4 {[%emt 0:02:59]} 11. Nd2 {[%emt 0:01:57]} Nh6 {[%emt 0:17:46]} 12. Nc4 {[%emt 0:11:55]} f6 {[%emt 0:05:57]} 13. Bc1 {[%emt 0:03:46]} Bd4 {[%emt 0:03:34]} 14. Rb1 {[%emt 0:05:00]} Nf7 {[%emt 0:01:47]} 15. Ba3 {[%emt 0:01:47]} Nd6 {[%emt 0:02:03]} 16. Kh1 {[%emt 0:13:59]} b5 {[%emt 0:02:57]} 17. Ne3 {[%emt 0:07:48]} g6 {[%emt 0:10:47]} 18. c4 {[%emt 0:04:25]} c5 {[%emt 0:05:17]} 19. Nc2 {[%emt 0:04:30]} b4 {[%emt 0:00:57]} 20. Nxd4 {[%emt 0:00:20]} exd4 {[%emt 0:00:49]} 21. Bc1 {[%emt 0:00:01]} Nf7 {[%emt 0:01:31]} 22. f4 {[%emt 0:02:16]} a5 {[%emt 0:02:26]} 23. a4 {[%emt 0:00:01]} Kg7 {[%emt 0:05:07]} 24. Rb2 {[%emt 0:01:21]} Nd6 {[%emt 0:04:07]} 25. f5 {[%emt 0:02:17]} Nf7 {[%emt 0:02:03]} 26. Rbf2 {[%emt 0:02:11]} Ra6 {[%emt 0:01:06]} 27. h4 {[%emt 0:05:05]} Ne5 {[%emt 0:01:15]} 28. Bf4 {[%emt 0:00:21]} Kf7 {[%emt 0:01:22]} 29. Bxe5 {[%emt 0:04:28]} Qxe5 {[%emt 0:00:14]} 30. Ne2 {[%emt 0:00:43]} gxf5 {[%emt 0:02:43]} 31. Rxf5 {[%emt 0:03:25]} Bxf5 {[%emt 0:00:24]} 32. Rxf5 {[%emt 0:00:01]} Qe7 {[%emt 0:02:09]} 33. Nf4 {[%emt 0:00:30]} Ke8 {[%emt 0:00:29]} 34. Qh5+ {[%emt 0:01:15]} Qf7 {[%emt 0:01:55]} 35. Rxc5 {[%emt 0:00:01]} Qxh5 {[%emt 0:00:58]} 36. Nxh5 {[%emt 0:00:01]} Kd7 {[%emt 0:01:17]} 37. Kh2 {[%emt 0:01:21]} c6 {[%emt 0:02:19]} 38. g4 {[%emt 0:00:12]} Ra7 {[%emt 0:02:49]} 39. Kg3 {[%emt 0:00:13]} Kd6 {[%emt 0:00:19]} 40. Rf5 {[%emt 0:00:01]} Ke7 {[%emt 0:00:26]} 41. Kf4 {[%emt 0:00:27]} Ke6 {[%emt 0:00:28]} 42. Kf3 {[%emt 0:00:54]} Ke7 {[%emt 0:00:10]} 43. Nf4 {[%emt 0:00:23]} Rg8 {[%emt 0:00:43]} 44. Rh5 {[%emt 0:00:20]} Kd6 {[%emt 0:00:38]} 45. c5+ {[%emt 0:00:16]} Kc7 {[%emt 0:00:25]} 46. Rxh7+ {[%emt 0:00:16]} Kb8 {[%emt 0:00:01]} 47. Rxa7 {[%emt 0:00:09]} Kxa7 {[%emt 0:00:01]} 48. Ne6 {[%emt 0:00:13]} Rh8 {[%emt 0:00:13]} 49. h5 {[%emt 0:00:05]} Kb7 {[%emt 0:00:12]} 50. Nxd4 {[%emt 0:00:40]} Rd8 {[%emt 0:00:05]} 51. Ke3 {[%emt 0:01:05]} Rg8 {[%emt 0:00:05]} 52. Kf4 {[%emt 0:00:01]} Rd8 {[%emt 0:00:08]} 53. Nf3 {[%emt 0:00:25]} Rxd3 {[%emt 0:00:19]} 54. h6 {[%emt 0:00:02]} Rd1 {[%emt 0:01:02]} 55. Kf5 {[%emt 0:00:14]} Rf1 {[%emt 0:00:11]} 56. h7 {[%emt 0:01:39]} Rxf3+ {[%emt 0:00:05]} 57. Kg6 {[%emt 0:00:00]} Rh3 {[%emt 0:00:14]} 58. Kg7 {[%emt 0:00:01]} Kc7 {[%emt 0:00:50]} 59. h8=Q {[%emt 0:00:02]} Rxh8 {[%emt 0:00:08]} 60. Kxh8 {[%emt 0:00:02]} Kd7 {[%emt 0:00:06]} 61. Kg7 {[%emt 0:00:10]} Ke6 {[%emt 0:00:06]} 62. Kg6 {[%emt 0:00:08]} Ke5 $18 {[%emt 0:00:05]} 63. Kf7 {[%emt 0:00:10]} Kxe4 {[%emt 0:00:15]} 64. Kxf6 1-0

[Event "25th Abu Dhabi Open 2018"]
[Site "Abu Dhabi"]
[Date "2018.08.12"]
[Round "6"]
[White "Ovezdurdiyeva, Jemal"]
[Black "Sanskriti, Goyal"]
[Result "1-0"]
[ECO "A61"]
[WhiteElo "2041"]
[BlackElo "1924"]
[Annotator "NA"]
[PlyCount "59"]
[EventDate "2018.08.05"]
[EventType "swiss"]
[EventCountry "UAE"]
[SourceTitle "playchess.com"]
[Source "ChessBase"]
[SourceQuality "1"]
[TimeControl "5400+30"]

1. d4 Nf6 2. c4 c5 3. d5 e6 4. Nc3 exd5 5. cxd5 d6 6. Nf3 g6 7. Bf4 a6 8. a4 Bg7 9. h3 O-O 10. e3 Qe7 {A61: Modern Benoni: Nf3 without early e4} 11. Be2 (11. Bd3 Nbd7 12. O-O Ne8 13. e4 Rb8 14. Re1 Nc7 15. Qd2 Ne5 16. Nxe5 Bxe5 17. Bxe5 Qxe5 18. a5 {1-0 (42) Akobian,V (2647)-Ponkratov,P (2613) Riadh 2017}) 11... Nfd7 12. O-O Ne5 13. Nd2 {[%emt 0:16:41]} Nbd7 {[%emt 0:20:31]} 14. Bh2 {[%emt 0:04:40]} f5 {[%emt 0:09:32]} 15. Kh1 {[%emt 0:08:40]} Nf6 {[%emt 0:13:02]} 16. Qb3 {[%emt 0:06:03]} Kh8 $146 {[%emt 0:10:38]} ({Predecessor:} 16... Nf7 17. Nc4 Rb8 18. a5 {1-0 (40) Erenberg,A (2375)-Oberhofer,C (2222) Pardubice 2017}) 17. Rae1 {[%emt 0:04:14]} Bd7 {[%emt 0:05:48]} 18. e4 {[%emt 0:10:38]} fxe4 {[%emt 0:08:24]} 19. Ndxe4 {[%emt 0:03:55]} Bf5 {[%emt 0:15:09]} 20. Ng5 {[%emt 0:12:19]} Rae8 {[%emt 0:11:12]} 21. Bc4 {[%emt 0:08:32]} h6 {[%emt 0:04:46]} 22. Nf3 {[%emt 0:09:37]} Qd7 {[%emt 0:00:40]} 23. Bxe5 {[%emt 0:04:02]} dxe5 {[%emt 0:00:39]} 24. Nxe5 {[%emt 0:00:21]} Rxe5 {[%emt 0:00:23]} 25. Rxe5 {[%emt 0:00:05]} Bxh3 {[%emt 0:00:12]} 26. Re3 {[%emt 0:04:34]} Bf5 {[%emt 0:00:02]} 27. Be2 {[%emt 0:01:45]} h5 {[%emt 0:00:35]} 28. Qc4 {[%emt 0:00:25]} Bh6 {[%emt 0:00:33]} (28... Qd6 $16 {kämpft weiter.} 29. a5 Rb8) 29. Qxc5 {[%emt 0:00:41]} Bxe3 $18 {[%emt 0:00:34]} (29... Qd8 30. Re7 b6) 30. Qxf8+ {[%emt 0:00:07]} 1-0

[Event "25th Abu Dhabi Open 2018"]
[Site "Abu Dhabi"]
[Date "2018.08.12"]
[Round "6"]
[White "Divinagracia, Alvin"]
[Black "Ali, Abdulaziz"]
[Result "1/2-1/2"]
[ECO "A00"]
[WhiteElo "2024"]
[BlackElo "1914"]
[Annotator "NA"]
[PlyCount "112"]
[EventDate "2018.08.05"]
[EventType "swiss"]
[EventCountry "UAE"]
[SourceTitle "playchess.com"]
[Source "ChessBase"]
[SourceQuality "1"]
[TimeControl "5400+30"]

1. g3 e5 2. c4 Nf6 3. Bg2 Nc6 4. Nc3 d6 5. Nf3 Bg4 6. d4 {A29: English Opening: Four Knights Variation with 4 g3} h6 (6... Qd7 7. dxe5 dxe5 8. Qxd7+ Nxd7 9. Be3 f6 10. O-O-O O-O-O 11. Nh4 Bc5 12. Bxc5 Nxc5 13. Bxc6 bxc6 14. b4 Ne6 15. f3 Bh5 16. Nf5 Kb7 {½-½ (16) Hnydiuk,A (2417)-Gumula,D (2218) Katowice 2018}) 7. O-O $146 ({Predecessor:} 7. d5 Bxf3 8. Bxf3 Nd4 9. Bg2 Nf5 10. O-O g5 11. e3 Bg7 12. Bh3 Ne7 {1-0 (61) Gruber,T (2302)-Mueller,R (2295) Germany 2004}) 7... Qd7 8. dxe5 dxe5 9. Qb3 Rb8 10. Rd1 Qc8 11. Nd5 Nd7 12. Qc3 a5 13. a3 a4 14. Be3 g6 15. Nb4 Bg7 16. h3 Be6 17. Nxc6 bxc6 18. Qc2 Qa6 19. Qd2 Nb6 20. Bc5 Nxc4 21. Qc2 Qb5 22. Bb4 c5 23. Bc3 O-O 24. g4 Rfd8 25. e3 Rd6 26. Bf1 Qc6 27. Bg2 Qb6 28. Qxa4 Nxb2 29. Bxb2 Rxd1+ 30. Qxd1 Qxb2 31. Ne1 {[#]} e4 $1 32. Rc1 Bb3 33. Nc2 Qe5 34. Qd2 Qe7 35. Na1 c4 36. Nxb3 cxb3 37. Qd5 Qxa3 38. Rxc7 Rf8 39. Bxe4 b2 40. Rb7 Kh8 41. Kg2 Qa8 42. Qd7 Qe8 43. Qxe8 Rxe8 44. Bb1 Rc8 45. h4 Kg8 46. h5 g5 47. Ba2 Rf8 48. f4 Bf6 49. Kf3 Kg7 50. e4 gxf4 51. Kxf4 Bg5+ 52. Kf5 Ra8 53. Rxf7+ Kh8 54. Bb1 Ra1 55. Kg6 $11 Ra6+ 56. Kf5 Ra1 {Kf4} 1/2-1/2